bitfinex/quotes_ETHUSD_20260207
["timestamp","ask_amount","ask_price","bid_price","bid_amount"]
[1770497907540,0.002,2106.3,2105.6,6.49878809]
[1770497907741,0.96795703,2106.2,2105.6,1.22079924]
[1770497907947,1.18891899,2106.3,2105.6,1.22079924]
[1770497908146,0.002,2106.3,2105.6,1.22079924]
[1770497908549,0.002,2106.3,2105.9,0.03349122]
[1770497909756,0.002,2106.0,2105.9,0.03349122]
[1770497909967,0.002,2106.3,2105.9,0.03349122]
[1770497910162,0.002,2106.2,2105.9,0.03349122]
[1770497910666,0.002,2106.5,2106.1,4.31626777]
[1770497911548,0.002,2106.5,2106.0,1.18708452]
[1770497911754,0.002,2106.5,2106.0,1.22057574]
[1770497916066,1.46776377,2106.9,2106.3,4.31626777]
[1770497916264,1.14260411,2106.8,2106.3,4.31626777]
[1770497916461,1.14260411,2106.8,2106.0,6.64939069]
[1770497917474,1.14260411,2106.8,2106.3,0.03349122]
[1770497918558,0.32515966,2106.9,2106.3,5.46230617]
[1770497919151,0.32515966,2106.9,2106.6,0.03349122]
[1770497919552,0.32515966,2106.9,2106.6,1.22018423]
[1770497919991,0.002,2107.2,2106.6,5.536452]
[1770497920278,0.002,2107.2,2106.6,6.64899918]
[1770497920465,0.002,2107.2,2106.6,5.536452]
[1770497920977,0.002,2107.2,2106.6,6.64899918]
[1770497921176,0.002,2107.2,2106.9,0.03349122]
[1770497921949,0.002,2107.2,2106.9,1.22005478]
[1770497922154,0.002,2107.0,2106.9,1.22005478]
[1770497923085,0.002,2107.4,2106.9,1.22005478]
[1770497923460,0.002,2107.4,2106.9,2.33260196]
[1770497923765,1.14260411,2107.3,2106.5,1.1877708]
[1770497923965,1.14260411,2107.1,2106.5,0.001]
[1770497925867,4.74563401,2107.3,2106.5,0.001]
[1770497925868,1.14260411,2107.3,2106.6,0.03349122]
[1770497926687,1.14260411,2107.3,2106.5,0.001]
[1770497927272,1.14260411,2107.3,2106.5,1.18779903]
[1770497927462,1.14260411,2107.3,2106.6,0.03349122]
[1770497927789,1.14260411,2107.3,2106.6,1.2202297]
[1770497928004,2.32900875,2107.3,2106.6,1.2202297]
[1770497928665,1.14260411,2107.2,2106.5,0.001]
[1770497929809,1.14260411,2107.1,2106.5,0.001]
[1770497930005,1.14260411,2106.9,2106.5,0.001]
[1770497930530,1.14260411,2107.1,2106.6,0.03349122]
[1770497930821,1.14260411,2107.3,2106.9,0.03349122]
[1770497931886,0.002,2107.4,2106.9,0.03349122]
[1770497932083,0.002,2107.4,2106.9,1.2200614]
[1770497932427,1.14460411,2107.4,2106.6,1.18671945]
[1770497933186,1.14460411,2107.4,2106.7,1.18668533]
[1770497933530,1.14460411,2107.4,2106.8,1.22012344]
[1770497933701,1.14460411,2107.4,2106.8,0.03349122]
[1770497933899,1.14460411,2107.4,2106.8,1.22011189]
[1770497934237,2.33092679,2107.4,2106.8,1.22011189]
[1770497934690,2.33092679,2107.4,2106.8,0.03349122]
[1770497935297,2.33092679,2107.4,2107.1,0.001]
[1770497935499,1.14460411,2107.4,2107.1,0.001]
[1770497935700,2.33090612,2107.4,2107.1,0.001]
[1770497936113,1.18830201,2107.4,2107.1,0.001]
[1770497936416,0.002,2107.4,2107.1,0.001]
[1770497937626,0.002,2107.7,2107.2,1.11254718]
[1770497937791,0.002,2108.1,2107.6,1.1460384]
[1770497938112,0.002,2108.1,2107.4,1.11254718]
[1770497938290,2.32858975,2108.0,2107.3,1.18630347]
[1770497938491,1.14260411,2108.0,2107.3,1.21979469]
[1770497938833,2.32857509,2108.0,2107.3,1.21979469]
[1770497939201,2.32857509,2108.0,2107.3,1.18630347]
[1770497939401,1.14260411,2108.0,2107.3,1.18630347]
[1770497940127,2.32856558,2108.0,2107.3,1.18630347]
[1770497940509,2.32856558,2108.0,2107.2,4.74561167]
[1770497941836,1.14460411,2107.9,2107.1,1.18742832]
[1770497942407,1.14460411,2107.9,2107.1,2.2999755]
[1770497943928,0.002,2107.9,2107.1,2.2999755]
[1770497944743,0.002,2107.9,2107.2,1.1460384]
[1770497947815,1.33914768,2107.9,2107.3,1.1863522]
[1770497948422,0.002,2107.7,2107.3,1.1863522]
[1770497948624,0.002,2108.1,2107.7,1.31777983]
[1770497948829,1.33914768,2108.1,2107.3,1.1863522]
[1770497952045,1.38974297,2108.0,2107.2,1.18640157]
[1770497954156,1.38974297,2107.8,2107.1,0.001]
[1770497956844,1.38974297,2107.7,2107.1,0.001]
[1770497959065,1.38974297,2107.6,2107.1,0.001]
[1770497960564,1.38974297,2107.6,2107.3,0.001]
[1770497962670,0.002,2107.7,2107.3,0.001]
[1770497966653,1.39174297,2107.7,2107.3,0.001]
[1770497966982,1.39174297,2107.7,2107.1,0.001]
[1770497967780,1.38974297,2107.5,2107.1,0.001]
[1770497968387,1.38974297,2107.5,2106.5,0.001]
[1770497968572,1.38974297,2107.5,2106.6,1.18672107]
[1770497968879,1.38974297,2107.5,2106.7,1.18664313]
[1770497969087,1.38974297,2107.5,2106.8,1.1866249]
[1770497969258,1.38974297,2107.5,2106.7,1.18664791]
[1770497969459,1.38974297,2107.5,2106.5,1.18775305]
[1770497969659,2.57603887,2107.4,2106.5,0.001]
[1770497969860,1.38974297,2107.3,2106.5,0.001]
[1770497971804,2.57615147,2107.2,2106.5,0.001]
[1770497971969,1.38974297,2107.2,2106.5,0.001]
[1770497972687,1.38974297,2107.5,2106.5,1.34448464]
[1770497972885,1.1881422,2107.7,2106.8,1.34348464]
[1770497973077,1.38974297,2107.6,2106.8,1.34348464]
[1770497973281,1.38974297,2107.6,2106.7,1.34348464]
[1770497973467,1.38974297,2107.6,2106.5,1.34448464]
[1770497973880,1.38974297,2107.5,2106.6,2.53023105]
[1770497974590,1.38974297,2107.5,2106.7,0.001]
[1770497976670,2.57603174,2107.5,2106.7,1.49164375]
[1770497977472,1.38974297,2107.5,2106.7,1.49164375]
[1770497979100,2.57598803,2107.5,2106.8,1.18663375]
[1770497979263,2.57598803,2107.5,2106.7,2.67829095]
[1770497979468,1.48962829,2107.4,2106.7,1.1876472]
[1770497981362,1.48962829,2107.2,2106.7,0.001]
[1770497982474,1.48962829,2107.6,2106.7,1.49164375]
[1770497982679,2.67581162,2107.6,2106.7,1.52513497]
[1770497983775,1.48962829,2107.6,2106.8,2.6772775]
[1770497983976,2.67581746,2107.6,2106.8,2.6772775]
[1770497984175,2.67581865,2107.6,2106.8,2.6772775]
[1770497985978,1.18816575,2107.7,2106.9,1.49064375]
[1770497986293,2.67779404,2107.7,2106.9,1.49064375]
[1770497986671,2.67779404,2107.7,2106.9,1.49164375]
[1770497986971,0.002,2107.4,2106.9,1.49164375]
[1770497989299,0.002,2107.4,2107.0,2.67716487]
[1770497989472,0.002,2107.4,2107.1,1.49064375]
[1770497991200,0.002,2107.4,2107.1,2.67707226]
[1770497992075,0.002,2107.4,2107.1,1.18642851]
[1770497992271,0.002,2107.4,2106.9,1.18752923]
[1770497992472,0.002,2107.4,2107.0,1.18652106]
[1770497993273,0.002,2107.4,2106.9,0.001]
[1770497999075,0.002,2107.4,2107.0,1.49064375]
[1770497999486,0.002,2107.4,2106.9,0.001]
[1770498000175,0.002,2107.4,2106.9,1.49164375]
[1770498000397,0.002,2107.7,2107.2,0.03349122]
[1770498000600,0.002,2108.1,2107.6,1.49064375]
[1770498000917,0.002,2108.1,2107.3,1.49064375]
[1770498001397,0.002,2108.1,2107.5,1.49064375]
[1770498001706,0.002,2108.1,2107.5,1.52413497]
[1770498002297,0.002,2108.1,2107.4,1.1862959]
[1770498002609,1.49162829,2108.1,2107.4,1.1862959]
[1770498004003,1.49162829,2108.1,2107.1,0.001]
[1770498004004,1.48962829,2108.0,2107.1,0.001]
[1770498004384,0.002,2108.1,2107.4,1.18627648]
[1770498004587,0.002,2108.1,2107.5,1.49064375]
[1770498004888,0.002,2108.1,2107.4,1.18627648]
[1770498005784,0.002,2108.1,2107.4,1.2197677]
[1770498006117,0.002,2108.1,2107.4,2.74552863]
[1770498007823,1.54529429,2108.1,2107.4,1.2197677]
[1770498008112,1.54529429,2108.1,2107.3,1.18630965]
[1770498008317,1.54329429,2107.9,2107.1,1.1874648]
[1770498009409,1.54329429,2107.9,2107.1,2.71322573]
[1770498010187,1.18794236,2108.1,2107.3,1.1863522]
[1770498010188,1.54529429,2108.1,2107.3,1.1863522]
[1770498010492,0.002,2108.1,2107.4,1.52576093]
[1770498012492,0.002,2108.1,2107.5,2.71200055]
[1770498012689,1.5990829,2108.0,2107.5,1.18623962]
[1770498012890,0.002,2107.9,2107.5,1.18623962]
[1770498014699,0.002,2107.9,2107.4,6.36221575]
[1770498015632,0.002,2107.9,2107.4,4.74595848]
[1770498015799,0.002,2107.9,2107.4,4.7794497]
[1770498015998,0.002,2107.9,2107.4,6.39570697]
[1770498016197,0.002,2107.9,2107.4,6.36221575]
[1770498017196,0.002,2107.9,2107.5,1.61625727]
[1770498017426,0.002,2108.1,2107.6,5.91893264]
[1770498017733,0.002,2108.1,2107.7,1.64974849]
[1770498018104,1e-08,2108.2,2107.7,1.64974849]
[1770498018911,1e-08,2108.2,2107.6,4.30267537]
[1770498019109,1e-08,2108.2,2107.7,1.18612705]
[1770498019315,1e-08,2108.2,2107.7,2.80238432]
[1770498021829,0.002,2108.5,2108.0,5.95242386]
[1770498022024,0.002,2108.5,2108.0,5.91893264]
[1770498022218,0.002,2108.5,2107.8,5.91893264]
[1770498023535,0.002,2108.5,2107.9,1.18601451]
[1770498025233,0.002,2108.5,2107.9,2.80227178]
[1770498025434,0.002,2108.5,2108.1,2.80215926]
[1770498025802,1.5990829,2108.9,2108.1,2.80215926]
[1770498026234,0.002,2108.3,2108.2,1.61625727]
[1770498026434,1.5990829,2109.1,2108.2,1.61625727]
[1770498027140,0.002,2109.2,2108.2,1.61625727]
[1770498027320,0.002,2109.2,2108.4,1.61625727]
[1770498027515,0.002,2109.2,2108.5,1.18567702]
[1770498027719,1.6010829,2109.2,2108.5,1.18567702]
[1770498029728,1.6010829,2109.2,2108.5,2.80193429]
[1770498030053,0.33948755,2109.6,2108.6,1.64974849]
[1770498030217,1.93857045,2109.6,2108.6,1.64974849]
[1770498030546,0.33948755,2109.6,2108.6,1.64974849]
[1770498030852,0.33948755,2109.6,2109.0,1.61625727]
[1770498031150,1.5990829,2110.2,2109.0,1.61625727]
[1770498031332,1.5990829,2110.2,2109.2,1.64974849]
[1770498031814,4.27972671,2110.4,2109.4,1.61625727]
[1770498032017,3.0950829,2110.4,2109.4,1.61625727]
[1770498032215,4.27969833,2110.4,2109.4,1.61625727]
[1770498032445,1.5990829,2110.3,2109.4,1.61625727]
[1770498032623,1.5990829,2110.3,2109.4,1.64974849]
[1770498032817,1.5990829,2111.0,2109.7,1.64974849]
[1770498033144,1.5990829,2110.9,2109.9,1.61625727]
[1770498033725,1.5990829,2111.1,2110.2,1.18472182]
[1770498033911,1.5990829,2111.1,2110.1,1.18473549]
[1770498034547,1.5990829,2111.1,2110.2,1.64974849]
[1770498034724,1.1841648,2111.2,2110.2,1.64974849]
[1770498035231,1.5990829,2111.1,2110.1,1.18476457]
[1770498035443,1.5990829,2111.1,2110.0,1.18482715]
[1770498035817,1.5309178,2110.9,2109.8,1.18494644]
[1770498036017,1.5309178,2110.9,2109.8,2.69165292]
[1770498036221,1.5309178,2110.9,2109.8,1.18494644]
[1770498038152,0.002,2110.7,2109.7,6.24649224]
[1770498038344,1.5329178,2110.7,2109.7,6.24649224]
[1770498040343,1.18449729,2110.6,2109.7,6.24649224]
[1770498040523,2.71739497,2110.7,2109.8,1.50670648]
[1770498041144,1.5309178,2110.6,2109.6,1.18505692]
[1770498041346,1.5309178,2110.6,2109.5,1.18508675]
[1770498041732,1.5309178,2110.6,2109.6,1.18504987]
[1770498041933,1.5309178,2110.6,2109.5,1.18510278]
[1770498042149,1.5309178,2110.6,2109.6,1.18505594]
[1770498042658,1.5309178,2110.6,2109.6,1.5401977]
[1770498042854,2.71541839,2110.6,2109.6,1.5401977]
[1770498043760,1.5309178,2110.5,2109.4,1.50670648]
[1770498043967,1.5309178,2110.5,2109.6,1.50670648]
[1770498044376,1.18450059,2110.6,2109.6,1.50670648]
[1770498044572,0.002,2110.7,2110.0,1.50670648]
[1770498044776,0.002,2110.7,2109.9,1.18489027]
[1770498045143,0.002,2110.7,2110.1,1.5401977]
[1770498046575,0.002,2110.7,2110.2,2.6914283]
[1770498047265,0.002,2110.9,2110.4,1.5401977]
[1770498047473,0.32590275,2111.4,2110.7,1.5401977]
[1770498047689,2.71481202,2111.7,2110.7,1.5401977]
[1770498048056,2.71480058,2111.7,2110.7,1.5401977]
[1770498048751,2.71480058,2111.7,2110.8,1.18438506]
[1770498049150,1.5309178,2112.0,2110.8,2.69109154]
[1770498049452,1.5309178,2112.0,2110.9,1.50670648]
[1770498049654,1.5309178,2112.0,2110.8,1.18438506]
[1770498050662,1.5309178,2111.8,2110.6,4.73789685]
[1770498050969,1.5309178,2111.8,2110.7,0.03349122]
[1770498051172,1.5329178,2111.5,2110.6,4.73789685]
[1770498051361,1.5329178,2111.5,2110.5,1.18451363]
[1770498052970,1.18404849,2111.4,2110.5,1.18451363]
[1770498053551,2.71695161,2111.5,2110.5,1.18451363]
[1770498053954,1.5309178,2111.4,2110.4,1.18460296]
[1770498054464,1.5309178,2111.4,2110.4,1.21809418]
[1770498054658,1.5309178,2111.4,2110.5,1.50670648]
[1770498055056,0.002,2111.5,2110.6,2.69120377]
[1770498055257,0.002,2111.5,2110.7,1.5401977]
[1770498057350,0.002,2111.5,2110.4,6.27818689]
[1770498057550,1.5329178,2111.5,2110.7,1.18440655]
[1770498058973,1.5329178,2111.5,2110.2,1.60910648]
[1770498059181,1.5329178,2111.5,2110.7,1.1844285]
[1770498059354,1.18404849,2111.4,2110.6,4.77147011]
[1770498059558,2.71691716,2111.5,2110.6,6.27817659]
[1770498059779,1.5309178,2111.4,2110.6,1.21798851]
[1770498060263,1.18599936,2111.5,2110.6,2.72469499]
[1770498060457,1.5309178,2111.4,2110.5,1.18451228]
[1770498060767,1.4809178,2111.4,2110.5,1.18454813]
[1770498060955,1.4809178,2111.4,2110.5,2.69125461]
[1770498061155,1.4809178,2111.4,2110.6,0.03349122]
[1770498061657,1.5309178,2111.3,2110.4,1.18457144]
[1770498061853,1.5309178,2111.3,2110.5,1.1845205]
[1770498062691,1.5309178,2111.3,2110.6,1.18449356]
[1770498062862,4.73802499,2111.5,2110.6,2.69120004]
[1770498062863,2.71696473,2111.5,2110.6,2.69120004]
[1770498063063,2.71696473,2111.5,2110.8,1.5401977]
[1770498063064,0.002,2111.5,2110.8,1.5401977]
[1770498063565,0.002,2111.5,2110.9,1.18432895]
[1770498064270,0.002,2111.5,2110.9,2.69103543]
[1770498065056,0.002,2111.3,2110.9,1.18432895]
[1770498066578,1.59384377,2111.3,2110.3,1.53149576]
[1770498066780,1.59384377,2111.3,2110.0,1.53149576]
[1770498067078,1.59384377,2111.3,2109.9,1.18485978]
[1770498067279,1.59384377,2111.3,2109.5,4.74031555]
[1770498067485,1.59184377,2111.1,2109.6,1.18503227]
[1770498067662,1.59184377,2111.1,2109.7,1.18499652]
[1770498068492,1.18427285,2111.0,2109.4,1.18617113]
[1770498068682,1.59184377,2110.9,2109.4,1.18617113]
[1770498069892,1.59184377,2110.9,2109.6,0.03349122]
[1770498070693,0.03349122,2110.3,2109.1,0.001]
[1770498070860,1.59184377,2110.2,2109.1,0.001]
[1770498071060,1.86710001,2110.8,2108.9,1e-08]
[1770498071061,1.59184377,2109.6,2108.9,1e-08]
[1770498071374,1.59184377,2109.6,2108.1,0.03349122]
[1770498071575,1.68517151,2109.4,2107.6,1.53249576]
[1770498071776,1.68517151,2109.4,2108.0,0.03349122]
[1770498071981,1.68517151,2109.3,2107.7,0.03349122]
[1770498072507,1.68517151,2108.9,2107.6,0.001]
[1770498072665,1.68517151,2108.7,2107.6,0.001]
[1770498074802,1.68517151,2108.5,2107.6,0.001]
[1770498075019,1.68517151,2108.5,2106.7,0.03449122]
[1770498075242,1.18562079,2108.6,2106.8,0.03349122]
[1770498075243,1.68517151,2107.2,2106.8,0.03349122]
[1770498075500,1.68517151,2108.1,2106.6,1.18774134]
[1770498075700,1.68517151,2108.1,2106.6,0.001]
[1770498075870,1.68517151,2107.7,2106.6,0.001]
[1770498076276,0.26706152,2108.0,2106.6,0.001]
[1770498076277,1.68517151,2107.5,2106.6,0.001]
[1770498077071,1.68517151,2107.3,2106.6,0.001]
[1770498078391,1.1862959,2107.4,2106.6,0.001]
[1770498078986,6.43035514,2107.5,2106.8,0.001]
[1770498080187,2.87141113,2107.5,2106.8,0.001]
[1770498080796,1.68517151,2107.1,2105.7,0.001]
[1770498080993,1.18685909,2106.4,2105.7,0.001]
[1770498081302,1.68517151,2106.3,2105.7,0.001]
[1770498082777,1.1868314,2106.5,2105.7,0.001]
[1770498083277,6.43217965,2106.6,2105.7,0.001]
[1770498084381,1.68517151,2106.5,2105.7,0.001]
[1770498085114,1.68517151,2105.8,2104.4,1.18795076]
[1770498085321,1.68517151,2105.8,2104.3,0.001]
[1770498085322,1.68517151,2105.6,2104.3,0.001]
[1770498085506,1.22074486,2105.7,2104.3,0.001]
[1770498085507,1.68517151,2105.1,2104.3,0.001]
[1770498085720,1.68517151,2105.6,2104.6,1.18785367]
[1770498086117,1.68517151,2105.6,2104.8,0.03349122]
[1770498086318,1.68517151,2105.6,2104.5,4.75262205]
[1770498086319,1.68517151,2105.6,2104.7,0.03349122]
[1770498086539,1.68517151,2105.6,2104.6,0.03349122]
[1770498086894,1.68517151,2105.6,2104.5,0.001]
[1770498087394,1.18736642,2105.5,2104.5,0.001]
[1770498087595,2.87253793,2105.5,2104.5,0.001]
[1770498087826,1.18736642,2105.5,2104.6,0.03349122]
[1770498088607,1.68517151,2105.4,2104.5,0.001]
[1770498088939,1.68517151,2105.4,2104.3,0.001]
[1770498089092,1.68517151,2105.4,2104.4,0.03349122]
[1770498089291,1.68517151,2105.4,2104.3,1.18903791]
[1770498089490,2.87265072,2105.3,2104.3,0.001]
[1770498089716,2.87265072,2105.3,2104.0,0.03349122]
[1770498089717,1.68517151,2105.0,2104.0,0.03349122]
[1770498089926,1.68517151,2105.2,2103.7,1.56620698]
[1770498090124,1.68517151,2105.2,2104.1,1.18815475]
[1770498090695,1.68517151,2105.2,2104.3,0.03349122]
[1770498091304,1.18747921,2105.3,2104.6,0.03349122]
[1770498091515,1.18736642,2105.5,2104.9,0.03349122]
[1770498091915,1.18736642,2105.5,2104.6,0.03349122]
[1770498093037,1.68517151,2105.4,2104.5,0.001]
[1770498093536,1.18747921,2105.3,2104.5,0.001]
[1770498093912,1.18747921,2105.3,2104.6,0.03349122]
[1770498094236,1.18747921,2105.3,2104.9,0.03349122]
[1770498094415,1.68517151,2105.5,2104.5,0.03349122]
[1770498094605,1.68517151,2105.5,2104.6,0.03349122]
[1770498094810,1.91874181,2105.4,2103.7,4.78694873]
[1770498095018,1.91874181,2105.4,2103.9,1.18826636]
[1770498095221,1.68517151,2105.0,2103.4,0.001]
[1770498095420,1.68517151,2105.0,2103.6,1.18839812]
[1770498095629,2.81781247,2104.9,2103.5,4.75379849]
[1770498096427,2.81781247,2104.9,2103.5,6.362542]
[1770498096632,1.18770487,2104.9,2103.7,0.03349122]
[1770498096804,1.18770487,2104.9,2103.5,2.79723887]
[1770498097004,1.6301076,2104.8,2103.5,1.60874351]
[1770498097630,1.18781774,2104.7,2103.6,1.18843886]
[1770498098228,1.18781774,2104.7,2104.0,0.03349122]
[1770498098625,1.18781774,2104.7,2103.7,0.03349122]
[1770498098626,1.6301076,2104.6,2103.7,0.03349122]
[1770498098810,1.6301076,2104.1,2102.5,0.03349122]
[1770498099009,6.95062284,2104.7,2103.4,0.03349122]
[1770498099247,2.81792534,2104.7,2103.0,1.60874351]
[1770498099448,1.8636779,2104.3,2103.3,0.03349122]
[1770498099647,1.6301076,2104.1,2103.3,0.03349122]
[1770498099847,1.6301076,2104.1,2102.8,1.22234545]
[1770498100059,1.6301076,2104.1,2103.2,0.03349122]
[1770498100212,1.18809999,2104.2,2103.5,0.03349122]
[1770498101855,4.75239996,2104.3,2103.2,0.03349122]
[1770498102007,4.75239996,2104.4,2103.5,0.03349122]
[1770498104154,4.75239996,2104.4,2103.8,0.03349122]
[1770498104461,4.75239996,2104.4,2103.2,6.39683775]
[1770498104462,1.6301076,2103.8,2102.1,0.03349122]
[1770498104736,1.6301076,2103.3,2102.1,0.03349122]
[1770498105037,1.6301076,2103.3,2102.2,0.03349122]
[1770498105221,1.6301076,2103.3,2102.6,0.001]
[1770498105424,1.6301076,2103.3,2102.1,0.03349122]
[1770498106211,1.6301076,2103.3,2102.2,0.03349122]
[1770498106212,1.18866489,2103.2,2102.2,0.03349122]
[1770498106407,1.6301076,2102.8,2101.4,3.35449122]
[1770498106614,1.6301076,2102.8,2101.7,0.03349122]
[1770498106913,1.6301076,2102.8,2101.4,4.79221368]
[1770498106914,1.6301076,2102.8,2101.4,1.22313416]
[1770498107114,1.6301076,2102.8,2101.4,1.22313883]
[1770498108007,1.6301076,2102.8,2101.3,0.17168772]
[1770498108224,1.6301076,2102.6,2101.3,0.1381965]
[1770498108424,1.6301076,2102.6,2101.3,0.17168772]
[1770498108622,5.7628051,2102.4,2101.3,0.1381965]
[1770498108937,5.7628051,2102.4,2101.4,0.03349122]
[1770498109145,1.6301076,2102.6,2101.4,0.03349122]
[1770498109842,1.6301076,2102.6,2101.7,0.03349122]
[1770498110042,1.6301076,2102.6,2101.4,0.03349122]
[1770498110228,1.18906064,2102.5,2101.4,0.03349122]
[1770498111317,1.18906064,2102.5,2101.7,0.03349122]
[1770498111757,1.18906064,2102.5,2102.0,0.03349122]
[1770498112049,1.18898652,2102.7,2101.7,0.03349122]
[1770498112248,1.18883446,2102.9,2102.1,0.03349122]
[1770498113017,1.18866489,2103.2,2102.1,1.22277431]
[1770498113212,1.18866489,2103.2,2102.4,0.03349122]
[1770498113554,4.75355424,2103.7,2102.4,0.03349122]
[1770498113865,4.75355424,2103.7,2102.7,0.03349122]
[1770498114357,6.38366184,2103.7,2102.5,1.18906064]
[1770498115122,6.38366184,2103.7,2102.7,0.03349122]
[1770498115744,4.75355424,2103.7,2102.7,0.03349122]
[1770498116645,4.75355424,2103.7,2102.7,1.22239381]
[1770498117044,5.7628051,2103.8,2102.7,1.22239381]
[1770498117350,0.002,2103.5,2103.0,0.03349122]
[1770498118663,0.002,2103.5,2103.1,1.18872141]
[1770498119133,0.002,2103.5,2102.7,4.78914309]
[1770498119327,1.6321076,2103.5,2102.6,1.22249412]
[1770498119521,0.002,2103.5,2102.8,1.18888547]
[1770498119720,0.002,2103.5,2102.9,0.03349122]
[1770498120421,0.002,2103.5,2103.2,0.03349122]
[1770498120616,0.002,2103.5,2103.0,1.18875093]
[1770498120821,0.002,2103.5,2103.2,0.03349122]
[1770498121737,0.002,2103.7,2103.3,3.323]
[1770498121932,1.18808334,2104.3,2103.6,0.03349122]
[1770498122233,1.18808334,2104.3,2103.3,3.323]
[1770498122436,1.18808334,2104.3,2103.2,0.03349122]
[1770498122624,1.18808334,2104.3,2103.3,3.323]
[1770498123044,4.75217411,2104.5,2103.5,1.22197538]
[1770498123585,1.6301076,2104.4,2103.3,4.51157509]
[1770498124276,1.6301076,2104.4,2103.5,1.22196733]
[1770498124673,4.75217411,2104.5,2103.5,1.22196733]
[1770498125077,0.002,2104.6,2103.8,0.03349122]
[1770498125287,0.002,2104.6,2103.5,1.22196733]
[1770498125656,0.002,2104.6,2103.8,0.03349122]
[1770498126097,1.7227894,2104.6,2103.4,1.18851921]
[1770498126256,1.7227894,2104.6,2103.4,1.22202726]
[1770498126447,1.7227894,2104.6,2103.4,1.22200223]
[1770498126766,1.7227894,2104.6,2103.4,0.03349122]
[1770498126960,1.7227894,2104.6,2103.0,1.66619679]
[1770498126961,1.7227894,2104.6,2103.2,1.22215496]
[1770498127162,1.6183894,2104.3,2102.9,1.2222907]
[1770498127361,1.6183894,2103.9,2102.8,1.18888148]
[1770498127567,1.6183894,2103.9,2102.9,1.2222894]
[1770498127755,1.6183894,2103.8,2102.7,1.1889184]
[1770498127949,1.6183894,2103.8,2102.9,1.22228837]
[1770498128144,1.6183894,2103.8,2102.9,0.03349122]
[1770498128374,1.6183894,2103.8,2102.7,1.1889213]
[1770498128969,5.7628051,2103.7,2102.0,0.03349122]
[1770498129157,1.6183894,2103.4,2102.1,1.1892869]
[1770498129575,1.6183894,2103.4,2102.3,0.03349122]
[1770498130269,1.6183894,2103.4,2102.0,1.22283074]
[1770498130479,1.6183894,2103.4,2102.0,0.03349122]
[1770498130783,1.6183894,2103.4,2102.5,0.001]
[1770498131078,1.6183894,2103.4,2102.0,0.03349122]
[1770498131259,1.6183894,2103.2,2102.0,0.03349122]
[1770498131460,5.7628051,2103.2,2102.0,0.03349122]
[1770498131670,1.55716572,2103.1,2102.0,0.03349122]
[1770498133264,2.74594365,2103.0,2102.0,0.03349122]
[1770498133668,1.18877793,2103.0,2102.3,0.03349122]
[1770498134464,1.18877793,2103.0,2102.0,1.22282422]
[1770498134661,1.18877793,2103.0,2102.0,0.03349122]
[1770498134988,2.74594365,2103.0,2102.0,1.22282197]
[1770498135190,2.74594365,2103.0,2102.0,0.03349122]
[1770498135370,2.74594365,2103.0,2102.3,0.03349122]
[1770498135690,2.74594365,2103.0,2102.0,0.03349122]
[1770498136557,1.55716572,2102.9,2101.9,0.001]
[1770498136753,1.55716572,2102.9,2102.0,0.03349122]
[1770498137258,1.188891,2102.8,2102.0,0.03349122]
[1770498138870,1.55716572,2102.7,2101.9,0.001]
[1770498139253,2.74616981,2102.6,2101.6,0.001]
[1770498139494,1.55716572,2102.5,2101.6,0.001]
[1770498141278,2.74628291,2102.4,2101.6,0.001]
[1770498141609,1.55716572,2102.3,2101.6,0.001]
[1770498142358,1.55716572,2102.3,2101.3,0.1381965]
[1770498142780,1.55716572,2102.3,2101.8,0.001]
[1770498142974,1.55716572,2102.3,2101.3,0.1381965]
[1770498143175,1.55716572,2102.3,2101.5,0.001]
[1770498143359,1.55716572,2102.1,2101.5,0.001]
[1770498143560,1.55716572,2102.1,2101.3,0.1381965]
[1770498144898,1.18923033,2102.2,2101.4,0.03349122]
[1770498145476,4.75692132,2102.3,2101.4,0.03349122]
[1770498145676,6.31408704,2102.3,2101.4,0.03349122]
[1770498145861,4.75692132,2102.3,2101.4,1.22315795]
[1770498146479,4.75692132,2102.3,2101.5,0.03349122]
[1770498146667,4.75692132,2102.3,2101.4,0.03349122]
[1770498146871,4.75692132,2102.3,2101.4,1.22316742]
[1770498147419,4.75625468,2102.5,2101.4,1.22316742]
[1770498147688,1.4272737,2104.9,2101.4,1.22316742]
[1770498147689,6.31272882,2102.9,2101.7,1.6809152]
[1770498147916,6.31272882,2102.9,2102.0,0.03349122]
[1770498149591,4.7555631,2102.9,2102.0,1.22281186]
[1770498150099,1.65956572,2103.2,2102.2,0.03349122]
[1770498150100,2.74585601,2103.2,2102.2,0.03349122]
[1770498150267,2.74585601,2103.2,2102.3,0.03349122]
[1770498150892,1.18869029,2103.2,2102.3,0.03349122]
[1770498151278,1.55716572,2103.1,2102.0,1.22281186]
[1770498151595,1.55716572,2103.1,2102.3,0.03349122]
[1770498151790,1.18877793,2103.0,2102.3,0.03349122]
[1770498152710,5.08923896,2103.9,2102.6,0.03349122]
[1770498152711,4.75393238,2103.6,2102.6,0.03349122]
[1770498152917,1.55716572,2103.5,2102.3,1.22266175]
[1770498153070,1.55716572,2103.2,2101.9,1.18939996]
[1770498153272,1.55716572,2103.2,2101.9,1.64742398]
[1770498153499,1.55716572,2103.2,2102.2,1.18918014]
[1770498153896,1.55716572,2103.2,2102.1,1.18924914]
[1770498153897,1.18872141,2103.1,2102.1,1.18924914]
[1770498154125,2.74588713,2103.1,2102.0,1.22282407]
[1770498155382,2.74588713,2103.1,2102.3,0.03349122]
[1770498155601,1.18872141,2103.1,2102.3,0.03349122]
[1770498156812,1.52722923,2103.2,2102.3,0.03349122]
[1770498157308,1.52722923,2103.2,2102.0,1.22280626]
[1770498157513,1.52722923,2103.2,2102.1,1.18928443]
[1770498157694,1.52722923,2103.2,2102.0,1.22279838]
[1770498158781,2.71595064,2103.1,2102.1,1.18928636]
[1770498160112,2.71595064,2103.1,2102.0,0.03349122]
[1770498160113,2.71595064,2103.1,2102.0,1.2227954]
[1770498160416,1.18872141,2103.1,2102.3,0.03349122]
[1770498160906,1.19060837,2103.3,2102.3,1.22261908]
[1770498161501,1.19060837,2103.3,2102.6,0.03349122]
[1770498163916,1.19060837,2103.3,2102.6,1.2224951]
[1770498164099,0.002,2103.3,2102.6,1.2224951]
[1770498165119,0.002,2103.3,2102.9,0.03349122]
[1770498165928,0.002,2103.3,2102.9,1.22232301]
[1770498167593,0.002,2103.5,2103.2,0.03349122]
[1770498167903,6.28030385,2104.0,2103.2,1.22215194]
[1770498168319,6.28030385,2104.0,2103.2,0.03349122]
[1770498168496,1.52722923,2103.9,2102.9,1.18882973]
[1770498169796,1.52722923,2103.9,2102.9,1.22232095]